bitfinex-derivatives/quotes_SOLF0:USTF0_20241012
["timestamp","ask_amount","ask_price","bid_price","bid_amount"]
[1728747052711,3.407,146.78,146.76,4.97108787]
[1728747052911,3.407,146.78,146.77,4.97108787]
[1728747053205,3.407,146.78,146.75,8.37]
[1728747053412,3.407,146.78,146.76,4.97100271]
[1728747053605,3.407,146.78,146.75,8.37]
[1728747053807,3.407,146.78,146.76,4.97100072]
[1728747054102,3.407,146.78,146.75,8.37]
[1728747054306,3.407,146.78,146.76,4.97090179]
[1728747054515,3.407,146.78,146.75,8.37]
[1728747054707,3.407,146.78,146.76,4.97092143]
[1728747054907,3.407,146.78,146.75,8.37]
[1728747055107,3.407,146.78,146.76,4.97092143]
[1728747055313,3.407,146.78,146.75,8.37]
[1728747055514,3.407,146.78,146.76,4.97084161]
[1728747055702,3.407,146.78,146.75,8.37]
[1728747055907,3.407,146.78,146.76,4.97084161]
[1728747056108,3.407,146.78,146.75,8.37]
[1728747056413,3.407,146.78,146.76,4.97074151]
[1728747056611,3.407,146.78,146.75,8.37]
[1728747056812,8.37,146.77,146.76,4.97074151]
[1728747057012,8.37,146.77,146.71,1.3429]
[1728747057211,8.37,146.77,146.71,9.7129]
[1728747057407,3.4076,146.75,146.72,4.97083535]
[1728747057606,3.4076,146.75,146.73,4.97083535]
[1728747057809,3.4076,146.75,146.74,4.97083535]
[1728747060414,3.4076,146.75,146.71,13.1214]
[1728747060611,3.4076,146.75,146.72,4.9717536]
[1728747060811,3.4076,146.75,146.73,4.9717536]
[1728747061017,3.4076,146.75,146.74,4.9717536]
[1728747061714,15.21580594,146.75,146.74,4.9717536]
[1728747062017,11.7775,146.76,146.7,11.0297]
[1728747062318,11.7775,146.76,146.71,8.38056422]
[1728747062519,11.7775,146.76,146.72,4.97216422]
[1728747062715,11.7775,146.76,146.73,4.97216422]
[1728747062911,11.7775,146.76,146.71,3.4084]
[1728747063118,11.7775,146.76,146.72,4.91717955]
[1728747063314,11.7775,146.76,146.71,3.4084]
[1728747064518,11.7772,146.77,146.72,8.37]
[1728747066415,8.37,146.77,146.72,11.7782]
[1728747066616,3.4074,146.76,146.72,11.7782]
[1728747067222,8.37,146.75,146.72,3.4082]
[1728747073620,8.37,146.74,146.7,3.9868]
[1728747074517,11.7779,146.74,146.7,7.3955]
[1728747075414,8.37,146.74,146.7,2.6597]
[1728747075618,11.7781,146.73,146.7,2.6597]
[1728747076420,3.4081,146.73,146.7,2.6597]
[1728747076726,3.4081,146.73,146.7,6.0685]
[1728747077318,3.4083,146.72,146.7,2.6597]
[1728747077928,3.4082,146.73,146.7,6.0684]
[1728747078320,3.4082,146.73,146.7,14.4384]
[1728747079226,8.37,146.76,146.71,8.37]
[1728747079425,5.0,146.8,146.71,8.37]
[1728747079629,8.37,146.76,146.71,8.37]
[1728747079831,11.7776,146.76,146.72,3.4082]
[1728747080026,8.37,146.76,146.72,3.4082]
[1728747080733,11.7775,146.76,146.72,3.4082]
[1728747082236,8.37,146.75,146.72,3.4082]
[1728747085632,8.37,146.74,146.7,2.6597]
[1728747085940,8.37,146.74,146.71,3.4085]
[1728747086638,11.7778,146.75,146.71,3.4085]
[1728747093646,3.4079,146.74,146.7,7.3951]
[1728747097351,11.7779,146.74,146.7,7.3951]
[1728747097555,3.4083,146.73,146.7,2.6597]
[1728747098348,3.4083,146.73,146.7,6.0684]
[1728747098760,11.7779,146.74,146.7,14.4384]
[1728747099454,3.4079,146.74,146.71,3.4084]
[1728747102965,3.4079,146.74,146.7,14.4383]
[1728747103464,3.4079,146.74,146.7,6.0683]
[1728747107664,11.7783,146.73,146.7,2.6597]
[1728747108059,8.37,146.73,146.7,2.6597]
[1728747108462,8.37,146.73,146.7,1.351]
[1728747108866,3.4085,146.72,146.7,1.351]
[1728747109571,11.7785,146.72,146.7,1.351]
[1728747109777,11.7785,146.72,146.69,3.53392]
[1728747110070,3.4086,146.71,146.69,0.12502]
[1728747111673,8.37,146.71,146.69,0.12502]
[1728747111867,3.4088,146.7,146.69,0.12502]
[1728747115477,8.37,146.71,146.69,0.12502]
[1728747116373,3.4088,146.7,146.69,0.12502]
[1728747117175,11.7786,146.71,146.69,0.12502]
[1728747117973,11.7785,146.72,146.69,11.90402]
[1728747118177,8.37,146.72,146.69,8.49502]
[1728747118372,3.4082,146.73,146.7,3.4088]
[1728747118876,3.4082,146.73,146.69,8.49502]
[1728747120473,3.4082,146.73,146.69,11.90392]
[1728747120774,8.37,146.72,146.69,3.53392]
[1728747123083,11.7783,146.72,146.69,3.53392]
[1728747124785,8.37,146.71,146.69,0.12502]
[1728747125288,8.37,146.7,146.69,0.12502]
[1728747126988,8.37,146.71,146.69,0.12502]
[1728747127189,3.4088,146.7,146.69,0.12502]
[1728747129289,3.47151499,146.75,146.69,0.12502]
[1728747129290,8.37,146.72,146.69,0.12502]
[1728747129492,8.37,146.73,146.69,0.12502]
[1728747130487,3.4085,146.72,146.69,11.90402]
[1728747130686,3.4085,146.72,146.69,3.53402]
[1728747131492,3.4085,146.72,146.69,0.12502]
[1728747131692,11.7785,146.72,146.69,0.12502]
[1728747132286,8.37,146.72,146.69,0.12502]
[1728747132485,3.4086,146.71,146.69,0.12502]
[1728747133191,11.7784,146.72,146.69,0.12502]
[1728747135491,3.47151499,146.75,146.69,0.12502]
[1728747135685,11.7788,146.7,146.69,0.12502]
[1728747144200,8.37,146.7,146.69,0.12502]
[1728747144501,11.7786,146.71,146.69,0.12502]
[1728747144697,3.42516348,146.73,146.69,0.12502]
[1728747145001,3.42516348,146.73,146.69,3.53392]
[1728747145002,8.37,146.73,146.69,3.53392]
[1728747145698,11.7782,146.73,146.69,3.53392]
[1728747146190,3.47802243,146.75,146.69,0.12502]
[1728747146398,8.37,146.74,146.7,3.4086]
[1728747148000,11.778,146.74,146.7,3.4086]
[1728747148601,8.37,146.73,146.7,3.4086]
[1728747149002,11.7781,146.73,146.69,3.53392]
[1728747150803,8.37,146.72,146.69,0.12502]
[1728747151006,11.7785,146.72,146.69,0.12502]
[1728747151696,8.37,146.72,146.69,0.12502]
[1728747151903,3.4087,146.71,146.69,0.12502]
[1728747160509,8.37,146.7,146.69,0.12502]
[1728747160715,11.7788,146.7,146.69,0.12502]
[1728747160914,3.43537213,146.75,146.69,0.12502]
[1728747161116,8.37,146.71,146.69,0.12502]
[1728747162017,11.7787,146.71,146.69,0.12502]
[1728747162720,8.37,146.7,146.69,0.12502]
[1728747163221,11.7788,146.7,146.69,0.12502]
[1728747171023,8.37,146.72,146.69,0.12502]
[1728747171228,3.4087,146.71,146.69,0.12502]
[1728747171529,8.37,146.73,146.69,0.12502]
[1728747171922,3.4085,146.72,146.69,3.53402]
[1728747172626,88.06385558,146.77,146.69,0.12502]
[1728747172825,8.37,146.73,146.7,3.4086]
[1728747173220,8.37,146.72,146.69,0.12502]
[1728747173536,8.37,146.72,146.69,3.53392]
[1728747177727,11.7785,146.72,146.69,0.12502]
[1728747180534,3.4086,146.71,146.69,0.12502]
[1728747180737,11.7786,146.71,146.69,0.12502]
[1728747184837,3.4086,146.71,146.69,0.12502]
[1728747185142,8.37,146.74,146.69,8.49502]
[1728747185430,3.408,146.74,146.71,3.4084]
[1728747185627,8.37,146.76,146.71,3.4084]
[1728747185832,8.37,146.76,146.71,4.8131]
[1728747186426,3.4078,146.75,146.71,4.8131]
[1728747187035,8.37,146.74,146.71,4.8131]
[1728747187433,11.7779,146.74,146.71,4.8131]
[1728747187639,8.37,146.73,146.71,1.4047]
[1728747187934,8.37,146.72,146.69,3.53392]
[1728747188243,8.37,146.71,146.69,3.53392]
[1728747191535,11.7783,146.72,146.69,3.53392]
[1728747196638,3.4085,146.71,146.69,0.12502]
[1728747196850,11.7785,146.71,146.69,0.12502]
[1728747199445,3.43298575,146.75,146.69,0.12502]
[1728747199446,11.7784,146.72,146.69,3.53402]
[1728747201146,8.37,146.72,146.69,0.12502]
[1728747201351,3.4085,146.71,146.69,0.12502]
[1728747205150,11.7784,146.72,146.69,3.53402]
[1728747205551,3.33627328,146.75,146.69,0.12502]
[1728747205743,8.37,146.73,146.69,0.12502]
[1728747206453,11.7782,146.73,146.7,3.4086]
[1728747206752,8.37,146.73,146.69,0.12502]
[1728747207357,11.7785,146.72,146.69,3.53392]
[1728747207551,8.37,146.72,146.69,0.12502]
[1728747208455,11.7784,146.72,146.69,3.53402]
[1728747213662,8.37,146.72,146.69,0.12502]
[1728747213962,11.7788,146.7,146.69,0.12502]
[1728747244494,3.4086,146.71,146.69,0.12502]
[1728747244694,11.7786,146.71,146.69,0.12502]
[1728747245484,8.37,146.71,146.69,0.12502]
[1728747245687,3.4088,146.7,146.69,0.12502]
[1728747245889,0.1283,146.75,146.69,0.12502]
[1728747246092,8.37,146.72,146.69,3.53402]
[1728747247897,11.7784,146.72,146.69,3.53402]
[1728747248200,8.37,146.71,146.69,0.12502]
[1728747249492,3.4084,146.72,146.69,0.12502]
[1728747249700,8.37,146.71,146.69,0.12502]
[1728747252998,11.7787,146.71,146.69,0.12502]
[1728747257707,11.7788,146.7,146.69,0.12502]
[1728747261902,3.4088,146.7,146.69,0.12502]
[1728747262801,0.1283,146.75,146.69,0.12502]
[1728747263001,8.37,146.72,146.69,0.12502]
[1728747264010,3.4088,146.7,146.69,0.12502]
[1728747265201,3.4086,146.71,146.69,0.12502]
[1728747265597,11.7786,146.71,146.69,0.12502]
[1728747268805,3.4088,146.7,146.69,0.12502]
[1728747271710,11.7786,146.71,146.69,0.12502]
[1728747273003,8.37,146.71,146.69,0.12502]
[1728747273205,3.4088,146.7,146.69,0.12502]
[1728747274612,11.7788,146.7,146.69,0.12502]
[1728747278819,3.48006853,146.74,146.69,0.12502]
[1728747279015,8.37,146.71,146.69,0.12502]
[1728747280312,11.7786,146.71,146.69,0.12502]
[1728747285117,3.4088,146.7,146.69,0.12502]
[1728747285317,11.7788,146.7,146.69,0.12502]
[1728747294628,3.4088,146.7,146.69,0.12502]
[1728747298429,3.4088,146.7,146.63,0.12502]
[1728747298430,8.37,146.7,146.63,0.12502]
[1728747298726,8.40425847,146.73,146.63,0.12502]
[1728747298727,8.37,146.65,146.63,0.12502]
[1728747298927,3.4102,146.64,146.63,0.12502]
[1728747301029,11.7802,146.64,146.63,0.12502]
[1728747317827,88.11503922,146.68,146.63,0.12502]
[1728747318031,8.37,146.64,146.63,0.12502]
[1728747318934,11.7802,146.64,146.63,0.12502]
[1728747361263,3.4102,146.64,146.63,0.12502]
[1728747361457,11.7802,146.64,146.63,0.12502]
[1728747370171,3.4102,146.64,146.63,0.12502]
[1728747370371,11.7802,146.64,146.63,0.12502]
[1728747378490,8.37,146.67,146.63,0.12502]
[1728747378681,56.89507447,146.78,146.66,8.37]
[1728747378682,0.12502,146.75,146.66,8.37]
[1728747378880,0.12502,146.75,146.7,8.37]
[1728747379080,8.49502,146.75,146.7,8.37]
[1728747379390,8.49502,146.75,146.69,8.37]
[1728747379391,8.37,146.73,146.69,8.37]
[1728747380389,8.49502,146.75,146.7,8.37]
[1728747380983,0.12502,146.75,146.72,8.37]
[1728747382289,8.49502,146.75,146.71,3.4085]
[1728747382890,11.90262,146.75,146.7,11.7787]
[1728747383894,8.37,146.74,146.67,2.7849]
[1728747384095,3.4081,146.73,146.68,3.4092]
[1728747384290,3.4081,146.73,146.68,11.7792]
[1728747384487,3.4081,146.73,146.69,11.779]
[1728747385395,3.53282,146.75,146.71,8.37]
[1728747385600,8.49502,146.75,146.71,8.37]
[1728747386488,0.12502,146.75,146.71,8.37]
[1728747386693,8.37,146.74,146.71,8.37]
[1728747387392,3.408,146.74,146.71,8.37]
[1728747387599,0.12502,146.75,146.71,11.7785]
[1728747388399,0.12502,146.75,146.72,8.37]
[1728747392000,8.49502,146.75,146.71,11.7785]
[1728747392203,11.90262,146.75,146.71,11.7785]
[1728747393302,11.90262,146.75,146.71,8.37]
[1728747393503,8.49502,146.75,146.7,3.4087]
[1728747393698,8.37,146.72,146.67,2.7849]
[1728747393900,8.37,146.72,146.67,11.1549]
[1728747394299,3.4088,146.7,146.67,14.5643]
[1728747394499,8.37,146.73,146.68,8.37]
[1728747394706,8.37,146.74,146.69,8.37]
[1728747394901,3.4084,146.72,146.69,8.37]
[1728747395204,8.37,146.73,146.69,8.37]
[1728747395706,8.37,146.72,146.67,2.7849]
[1728747395900,8.37,146.71,146.67,2.7849]
[1728747396501,3.4092,146.69,146.67,2.7849]
[1728747397600,11.7792,146.68,146.67,2.7849]
[1728747397801,11.7792,146.68,146.67,1.3953]
[1728747398502,3.4096,146.67,146.63,13.26172]
[1728747398709,3.4096,146.67,146.64,3.4101]
[1728747400015,8.37,146.68,146.63,9.85132]
[1728747400202,11.7802,146.65,146.63,1.48132]
[1728747400909,11.7802,146.64,146.63,0.12502]
[1728747401212,88.10866003,146.69,146.63,0.12502]
[1728747401213,8.37,146.65,146.63,0.12502]
[1728747401911,11.7799,146.66,146.63,0.12502]
[1728747403907,8.37,146.66,146.63,0.12502]
[1728747404114,8.37,146.65,146.63,0.12502]
[1728747404715,11.78,146.65,146.63,0.12502]
[1728747406816,3.4102,146.64,146.63,0.12502]
[1728747407016,8.37,146.65,146.63,0.12502]
[1728747407316,11.7802,146.64,146.63,0.12502]
[1728747410016,3.4111,146.61,146.58,1.3584]
[1728747410416,8.37,146.61,146.56,3.4119]
[1728747410618,8.37,146.6,146.56,3.4119]
[1728747410817,8.37,146.6,146.56,11.7819]
[1728747411018,11.7813,146.6,146.56,11.7819]
[1728747411718,8.37,146.6,146.54,1.3648]
[1728747411920,88.14180325,146.64,146.54,1.3648]
[1728747412218,88.14180325,146.64,146.55,8.37]
[1728747412420,11.7813,146.6,146.55,3.4123]
[1728747412620,11.7813,146.6,146.55,11.7823]
[1728747413917,3.4109,146.61,146.56,8.37]
[1728747414315,11.7809,146.61,146.56,8.37]
[1728747414620,11.7809,146.61,146.56,11.7819]
[1728747414918,8.37,146.6,146.56,3.4119]
[1728747417021,11.7812,146.6,146.56,3.4119]
[1728747422021,8.37,146.62,146.57,3.53682]
[1728747422214,8.37,146.6,146.57,3.53682]
[1728747423227,8.37,146.59,146.57,3.53682]
[1728747423723,8.37,146.59,146.57,0.12502]
[1728747424627,11.7814,146.59,146.57,0.12502]
[1728747424825,8.37,146.58,146.57,0.12502]
[1728747425431,11.7816,146.58,146.57,0.12502]
[1728747428930,1.3364,146.62,146.57,0.12502]
[1728747429134,11.7814,146.59,146.57,0.12502]
[1728747429535,3.4114,146.59,146.57,0.12502]
[1728747429738,11.7814,146.59,146.57,0.12502]
[1728747430734,8.37,146.6,146.57,0.12502]
[1728747431338,8.37,146.62,146.57,8.49502]
[1728747431738,8.37,146.61,146.57,0.12502]
[1728747432136,8.37,146.61,146.58,3.4114]
[1728747432339,8.37,146.6,146.58,3.4114]
[1728747432544,8.37,146.59,146.57,0.12502]
[1728747432742,8.37,146.58,146.57,0.12502]
[1728747433245,8.37,146.59,146.57,0.12502]
[1728747434647,8.37,146.59,146.57,3.53672]
[1728747434844,8.37,146.59,146.57,0.12502]
[1728747435549,11.7813,146.59,146.57,0.12502]
[1728747438640,8.37,146.59,146.57,0.12502]
[1728747438946,93.08297843,146.65,146.57,0.12502]
[1728747439145,8.37,146.6,146.57,0.12502]
[1728747440450,3.4113,146.59,146.57,0.12502]
[1728747443357,8.37,146.58,146.57,0.12502]
[1728747446259,3.4113,146.59,146.57,0.12502]
[1728747446464,93.08297843,146.65,146.57,0.12502]
[1728747446852,8.37,146.62,146.57,8.49502]
[1728747447962,3.4106,146.63,146.58,8.37]
[1728747448162,8.37,146.63,146.58,8.37]
[1728747448561,8.37,146.63,146.59,3.4112]
[1728747449467,11.7804,146.63,146.59,3.4112]
[1728747455667,99.92297843,146.65,146.61,3.4106]
[1728747455968,88.14297843,146.65,146.61,8.37]
[1728747456367,88.14297843,146.65,146.62,3.4106]
[1728747457064,8.37,146.64,146.6,8.37]
[1728747457769,8.37,146.65,146.6,8.37]
[1728747458369,11.7801,146.65,146.61,3.4108]
[1728747461964,0.125,146.73,146.61,8.37]
[1728747462171,3.4095,146.67,146.63,3.4103]
[1728747462570,11.7795,146.67,146.63,3.4103]
[1728747464871,8.37,146.67,146.61,8.37]
[1728747465075,3.4098,146.66,146.62,3.4106]
[1728747465272,11.7798,146.66,146.62,3.4106]
[1728747468679,11.7803,146.64,146.58,4.1801]
[1728747468879,3.4103,146.64,146.61,8.37]
[1728747469784,3.4103,146.64,146.58,4.1801]
[1728747469974,3.4103,146.64,146.61,8.37]
[1728747470179,3.4103,146.64,146.6,8.37]
[1728747470374,3.4103,146.64,146.6,11.781]
[1728747472173,3.4103,146.64,146.6,8.37]
[1728747472383,11.7801,146.65,146.61,3.4107]
[1728747472579,11.7801,146.65,146.61,11.7807]
[1728747473277,0.125,146.73,146.61,8.37]
[1728747473477,8.37,146.67,146.63,8.37]
[1728747474080,11.7796,146.67,146.63,11.7804]
[1728747474981,0.125,146.73,146.63,8.37]
[1728747475181,8.37,146.7,146.65,8.37]
[1728747475382,0.125,146.73,146.66,8.37]
[1728747475782,3.4089,146.7,146.66,11.7797]
[1728747475987,11.7789,146.7,146.66,11.7797]
[1728747476390,11.7789,146.7,146.66,8.37]
[1728747476585,3.53402,146.69,146.65,11.7799]
[1728747478591,11.90402,146.69,146.65,11.7799]
[1728747480987,8.37,146.68,146.65,3.4099]
[1728747481592,11.7794,146.68,146.64,11.7802]
[1728747482389,0.12502,146.69,146.65,8.37]
[1728747482591,8.37,146.68,146.58,4.1801]
[1728747482791,8.37,146.68,146.63,8.37]
[1728747483492,3.4096,146.67,146.63,11.7802]
[1728747483888,3.4096,146.67,146.63,8.37]
[1728747484096,3.4096,146.67,146.64,11.7802]
[1728747484498,11.7793,146.68,146.64,11.7802]
[1728747484690,3.4093,146.68,146.65,3.4099]
[1728747485894,0.12502,146.69,146.65,8.37]
[1728747486104,0.12502,146.69,146.66,3.4097]
[1728747486897,0.12502,146.69,146.65,11.7799]
[1728747487895,8.49502,146.69,146.65,11.7799]
[1728747488295,8.49502,146.69,146.65,3.4099]
[1728747488496,11.90402,146.69,146.65,3.4099]
[1728747490299,3.53402,146.69,146.65,3.4099]
[1728747490500,11.90402,146.69,146.65,3.4099]
[1728747494199,3.53402,146.69,146.65,3.4099]
[1728747494401,11.90402,146.69,146.65,3.4099]
[1728747497204,0.12502,146.69,146.66,3.4097]
[1728747497596,0.12502,146.69,146.68,8.37]
[1728747498501,0.12502,146.69,146.68,11.7792]
[1728747503202,96.57232198,146.75,146.71,3.4085]
[1728747503403,96.57232198,146.75,146.71,11.7785]
[1728747503709,88.20232198,146.75,146.71,11.7785]
[1728747504110,96.57232198,146.75,146.7,11.7787]
[1728747504310,88.20232198,146.75,146.7,11.7787]
[1728747504508,3.4079,146.74,146.7,11.7787]
[1728747505106,0.12502,146.75,146.73,8.37]
[1728747505412,0.12502,146.75,146.74,8.37]
[1728747506507,0.12502,146.75,146.74,11.7778]
[1728747507712,0.12502,146.75,146.74,3.4078]
[1728747507913,0.12502,146.75,146.72,8.37]
[1728747508809,0.12502,146.75,146.74,8.37]
[1728747510301,0.12502,146.75,146.74,11.7778]
[1728747515518,0.12502,146.75,146.73,11.778]
[1728747516612,0.12502,146.75,146.74,3.4078]
[1728747516812,0.12502,146.75,146.74,11.7778]
[1728747517212,3.4068,146.79,146.75,3.4074]
[1728747517416,3.4068,146.79,146.76,8.37]
[1728747517716,3.4065,146.8,146.76,11.7773]
[1728747517907,8.49502,146.81,146.76,8.37]
[1728747518114,0.12502,146.81,146.77,8.37]
[1728747518311,3.53142,146.81,146.77,11.7771]
[1728747518515,0.12502,146.81,146.77,11.7771]
[1728747519422,3.4065,146.8,146.77,11.7771]
[1728747520312,3.4065,146.8,146.76,8.37]
[1728747520523,11.7767,146.79,146.75,1.4085]
[1728747521118,8.37,146.79,146.75,1.4085]
[1728747522327,3.4069,146.78,146.75,1.4085]
[1728747524721,3.4072,146.77,146.74,8.37]
[1728747525519,0.12502,146.81,146.74,8.37]
[1728747525720,3.407,146.78,146.75,8.37]
[1728747528725,3.407,146.78,146.74,11.7778]
[1728747529228,3.4072,146.77,146.74,8.37]
[1728747530318,3.4072,146.77,146.74,11.7778]
[1728747532124,3.4072,146.77,146.71,5.99676879]
[1728747532324,3.4074,146.76,146.73,11.778]
[1728747532832,8.37,146.78,146.73,8.37]
[1728747533036,8.37,146.76,146.72,3.4082]
[1728747533525,11.7775,146.76,146.72,3.4082]
[1728747533832,8.37,146.76,146.72,3.4082]
[1728747534634,8.37,146.76,146.71,2.6288]
[1728747534935,3.4078,146.75,146.71,14.4073]
[1728747535533,3.4078,146.74,146.71,6.0373]
[1728747535729,3.4078,146.74,146.71,2.6288]
[1728747536434,8.37,146.75,146.71,2.6288]
[1728747536629,8.37,146.75,146.69,0.12502]
[1728747536832,8.37,146.73,146.69,11.90402]
[1728747537931,11.7782,146.73,146.69,11.90402]
[1728747538734,11.7782,146.73,146.7,3.4087]
[1728747539237,11.7782,146.73,146.69,11.90402]
[1728747543441,3.4085,146.72,146.69,8.49502]
[1728747544529,8.37,146.73,146.69,0.12502]
[1728747544733,3.4085,146.71,146.69,0.12502]
[1728747545531,8.37,146.72,146.69,0.12502]
[1728747545733,3.4088,146.7,146.69,0.12502]
[1728747546440,8.37,146.72,146.69,0.12502]
[1728747546639,3.4086,146.71,146.69,0.12502]
[1728747551145,11.7788,146.7,146.69,0.12502]
[1728747559156,3.4096,146.67,146.63,14.63562]
[1728747559357,8.37,146.67,146.63,2.85522]
[1728747559553,5.0,146.73,146.63,0.12502]
[1728747559554,8.37,146.65,146.63,0.12502]
[1728747560051,11.7801,146.65,146.63,0.12502]
[1728747560852,8.37,146.65,146.63,0.12502]
[1728747561052,11.7802,146.64,146.63,0.12502]
[1728747561455,3.36526217,146.74,146.63,0.12502]
[1728747561653,3.4098,146.66,146.63,0.12502]
[1728747561959,11.7798,146.66,146.63,0.12502]
[1728747562156,3.41,146.65,146.63,0.12502]
[1728747562659,8.37,146.64,146.63,0.12502]
[1728747563459,11.7802,146.64,146.63,0.12502]
[1728747563649,8.37,146.64,146.63,0.12502]
[1728747564258,3.41,146.65,146.63,0.12502]
[1728747567355,3.4102,146.64,146.63,0.12502]
[1728747571561,11.7802,146.64,146.63,0.12502]
[1728747586275,3.4108,146.62,146.59,2.7603]
[1728747586475,8.37,146.6,146.59,2.7603]
[1728747588275,11.7812,146.6,146.57,3.53672]
[1728747588475,8.37,146.59,146.57,3.53672]
[1728747593590,8.37,146.59,146.57,0.12502]
[1728747594597,8.37,146.58,146.57,0.12502]
[1728747598001,11.7816,146.58,146.57,0.12502]
[1728747598204,8.37,146.58,146.57,0.12502]
[1728747601191,11.7816,146.58,146.57,0.12502]
[1728747611903,8.37,146.58,146.57,0.12502]
[1728747612105,8.37,146.6,146.57,0.12502]
[1728747612502,11.7813,146.6,146.57,0.12502]
[1728747613102,3.4113,146.59,146.57,0.12502]
[1728747613800,8.37,146.59,146.57,0.12502]
[1728747614102,8.37,146.59,146.57,3.53682]
[1728747614506,11.7814,146.59,146.57,0.12502]
[1728747615705,11.7816,146.58,146.57,0.12502]
[1728747635118,3.4116,146.58,146.57,0.12502]
[1728747635315,11.7816,146.58,146.57,0.12502]
[1728747641711,8.37,146.58,146.51,2.87272]
[1728747641910,3.35254371,146.6,146.51,6.28572]
[1728747641911,8.37,146.53,146.51,6.28572]
[1728747646626,3.4139,146.48,146.47,0.12518]
[1728747646816,11.7839,146.48,146.47,0.12518]
[1728747647023,3.4139,146.48,146.47,0.12518]
[1728747647223,8.37,146.48,146.47,0.12518]
[1728747647930,11.7839,146.48,146.47,0.12518]
[1728747652823,3.4141,146.47,146.45,0.12502]
[1728747653032,8.37,146.47,146.45,0.12502]
[1728747654532,11.7841,146.47,146.45,0.12502]
[1728747656333,11.7844,146.46,146.45,0.12502]
[1728747656937,3.4138,146.49,146.45,0.12502]
[1728747657130,8.37,146.48,146.45,0.12502]
[1728747657330,8.37,146.47,146.45,0.12502]
[1728747657733,11.7842,146.47,146.45,0.12502]
[1728747659538,8.37,146.46,146.45,0.12502]
[1728747660031,11.7844,146.46,146.45,0.12502]
[1728747661729,8.37,146.47,146.45,0.12502]
[1728747662528,11.7844,146.47,146.45,0.12502]
[1728747662733,8.37,146.46,146.45,0.12502]
[1728747665841,8.37,146.46,146.45,3.53962]
[1728747666736,3.4137,146.49,146.46,3.4143]
[1728747666942,8.37,146.47,146.46,3.4143]
[1728747669540,8.37,146.47,146.45,0.12502]
[1728747669740,8.37,146.46,146.45,0.12502]
[1728747672441,8.37,146.47,146.45,3.53962]
[1728747673042,88.22069399,146.5,146.45,3.53962]
[1728747673243,8.37,146.46,146.45,3.53962]
[1728747675046,8.37,146.47,146.46,3.4143]
[1728747676143,8.37,146.47,146.45,3.53952]
[1728747676345,8.37,146.46,146.45,3.53952]
[1728747677448,8.37,146.46,146.45,0.12502]
[1728747678157,8.37,146.46,146.45,3.53962]
[1728747681652,8.37,146.46,146.45,0.12502]
[1728747684163,91.63419399,146.5,146.47,3.4141]
[1728747684367,88.22069399,146.5,146.45,0.12502]
[1728747684659,8.37,146.48,146.47,3.4141]
[1728747686361,8.37,146.48,146.46,1.3983]
[1728747686568,8.37,146.47,146.46,4.8125]
[1728747687261,91.63429399,146.5,146.46,4.8125]
[1728747687461,8.37,146.47,146.46,4.8125]
[1728747688068,8.37,146.47,146.45,3.53942]
[1728747688761,11.7841,146.47,146.45,0.12502]